Workbook

Sheet Kalender
A1: Wochentag | B1: Datum | C1: Fixtage | D1: Uhrzeit | E1: =CONCATENATE("Termine für das Jahr ",YEAR(B2)) -> Termine für das Jahr 2018 | F1: Ort | G1: Bemerkungen | H1: =TODAY() -> 2018-05-15 | I1: Termine eingeben | J1: TT.MM.
A2: =CHOOSE(WEEKDAY(B2),"Sonntag","Montag","Dienstag","Mittwoch","Donnerstag","Freitag","Samstag") -> Montag | B2: 2018-01-01 | C2: =IFERROR(VLOOKUP(B2,Fixtermine!$B$1:$E$208,3,FALSE),"") -> FT-Neujahr | I2: Beginn der Sommerferien | J2: 30.07. | K2: <<(Punkte nicht vergessen)
A3: =CHOOSE(WEEKDAY(B3),"Sonntag","Montag","Dienstag","Mittwoch","Donnerstag","Freitag","Samstag") -> Dienstag | B3: =B2+1 -> 2018-01-02 | C3: =IFERROR(VLOOKUP(B3,Fixtermine!$B$1:$E$208,3,FALSE),"") -> Weihnachtsferien | I3: Ende der Sommerferien | J3: 12.09. | K3: <<(Punkte nicht vergessen)
A4: Mittwoch | B4: 2018-01-03 | C4: =IFERROR(VLOOKUP(B4,Fixtermine!$B$1:$E$208,3,FALSE),"") -> Weihnachtsferien
A5: Donnerstag | B5: 2018-01-04 | C5: =IFERROR(VLOOKUP(B5,Fixtermine!$B$1:$E$208,3,FALSE),"") -> Weihnachtsferien
A6: Freitag | B6: 2018-01-05 | C6: =IFERROR(VLOOKUP(B6,Fixtermine!$B$1:$E$208,3,FALSE),"") -> Weihnachtsferien
A7: Samstag | B7: 2018-01-06 | C7: =IFERROR(VLOOKUP(B7,Fixtermine!$B$1:$E$208,3,FALSE),"") -> FT-Hl. 3 Könige
A8: Sonntag | B8: 2018-01-07 | C8: =IFERROR(VLOOKUP(B8,Fixtermine!$B$1:$E$208,3,FALSE),"") -> 
A9: Montag | B9: 2018-01-08 | C9: =IFERROR(VLOOKUP(B9,Fixtermine!$B$1:$E$208,3,FALSE),"") -> 
A10: Dienstag | B10: 2018-01-09 | C10: =IFERROR(VLOOKUP(B10,Fixtermine!$B$1:$E$208,3,FALSE),"") -> 
A11: Mittwoch | B11: 2018-01-10 | C11: =IFERROR(VLOOKUP(B11,Fixtermine!$B$1:$E$208,3,FALSE),"") -> 
A12: Donnerstag | B12: 2018-01-11 | C12: =IFERROR(VLOOKUP(B12,Fixtermine!$B$1:$E$208,3,FALSE),"") -> 
A13: Freitag | B13: 2018-01-12 | C13: =IFERROR(VLOOKUP(B13,Fixtermine!$B$1:$E$208,3,FALSE),"") -> 
A14: Samstag | B14: 2018-01-13 | C14: =IFERROR(VLOOKUP(B14,Fixtermine!$B$1:$E$208,3,FALSE),"") -> 
A15: Sonntag | B15: 2018-01-14 | C15: =IFERROR(VLOOKUP(B15,Fixtermine!$B$1:$E$208,3,FALSE),"") -> 
A16: Montag | B16: 2018-01-15 | C16: =IFERROR(VLOOKUP(B16,Fixtermine!$B$1:$E$208,3,FALSE),"") -> 
A17: Dienstag | B17: 2018-01-16 | C17: =IFERROR(VLOOKUP(B17,Fixtermine!$B$1:$E$208,3,FALSE),"") -> 
A18: Mittwoch | B18: 2018-01-17 | C18: =IFERROR(VLOOKUP(B18,Fixtermine!$B$1:$E$208,3,FALSE),"") -> 
A19: Donnerstag | B19: 2018-01-18 | C19: =IFERROR(VLOOKUP(B19,Fixtermine!$B$1:$E$208,3,FALSE),"") -> 
A20: Freitag | B20: 2018-01-19 | C20: =IFERROR(VLOOKUP(B20,Fixtermine!$B$1:$E$208,3,FALSE),"") -> 
A21: Samstag | B21: 2018-01-20 | C21: =IFERROR(VLOOKUP(B21,Fixtermine!$B$1:$E$208,3,FALSE),"") -> 
A22: Sonntag | B22: 2018-01-21 | C22: =IFERROR(VLOOKUP(B22,Fixtermine!$B$1:$E$208,3,FALSE),"") -> 
A23: Montag | B23: 2018-01-22 | C23: =IFERROR(VLOOKUP(B23,Fixtermine!$B$1:$E$208,3,FALSE),"") -> 
A24: Dienstag | B24: 2018-01-23 | C24: =IFERROR(VLOOKUP(B24,Fixtermine!$B$1:$E$208,3,FALSE),"") -> 
A25: Mittwoch | B25: 2018-01-24 | C25: =IFERROR(VLOOKUP(B25,Fixtermine!$B$1:$E$208,3,FALSE),"") -> 
A26: Donnerstag | B26: 2018-01-25 | C26: =IFERROR(VLOOKUP(B26,Fixtermine!$B$1:$E$208,3,FALSE),"") -> 
A27: Freitag | B27: 2018-01-26 | C27: =IFERROR(VLOOKUP(B27,Fixtermine!$B$1:$E$208,3,FALSE),"") -> 
A28: Samstag | B28: 2018-01-27 | C28: =IFERROR(VLOOKUP(B28,Fixtermine!$B$1:$E$208,3,FALSE),"") -> 
A29: Sonntag | B29: 2018-01-28 | C29: =IFERROR(VLOOKUP(B29,Fixtermine!$B$1:$E$208,3,FALSE),"") -> 
A30: Montag | B30: 2018-01-29 | C30: =IFERROR(VLOOKUP(B30,Fixtermine!$B$1:$E$208,3,FALSE),"") -> 
A31: Dienstag | B31: 2018-01-30 | C31: =IFERROR(VLOOKUP(B31,Fixtermine!$B$1:$E$208,3,FALSE),"") -> 
A32: Mittwoch | B32: 2018-01-31 | C32: =IFERROR(VLOOKUP(B32,Fixtermine!$B$1:$E$208,3,FALSE),"") -> 
A33: Donnerstag | B33: 2018-02-01 | C33: =IFERROR(VLOOKUP(B33,Fixtermine!$B$1:$E$208,3,FALSE),"") -> 
A34: Freitag | B34: 2018-02-02 | C34: =IFERROR(VLOOKUP(B34,Fixtermine!$B$1:$E$208,3,FALSE),"") -> 
A35: Samstag | B35: 2018-02-03 | C35: =IFERROR(VLOOKUP(B35,Fixtermine!$B$1:$E$208,3,FALSE),"") -> 
A36: Sonntag | B36: 2018-02-04 | C36: =IFERROR(VLOOKUP(B36,Fixtermine!$B$1:$E$208,3,FALSE),"") -> 
A37: Montag | B37: 2018-02-05 | C37: =IFERROR(VLOOKUP(B37,Fixtermine!$B$1:$E$208,3,FALSE),"") -> 
A38: Dienstag | B38: 2018-02-06 | C38: =IFERROR(VLOOKUP(B38,Fixtermine!$B$1:$E$208,3,FALSE),"") -> 
A39: Mittwoch | B39: 2018-02-07 | C39: =IFERROR(VLOOKUP(B39,Fixtermine!$B$1:$E$208,3,FALSE),"") -> 
A40: Donnerstag | B40: 2018-02-08 | C40: =IFERROR(VLOOKUP(B40,Fixtermine!$B$1:$E$208,3,FALSE),"") -> 
A41: Freitag | B41: 2018-02-09 | C41: =IFERROR(VLOOKUP(B41,Fixtermine!$B$1:$E$208,3,FALSE),"") -> 
A42: Samstag | B42: 2018-02-10 | C42: =IFERROR(VLOOKUP(B42,Fixtermine!$B$1:$E$208,3,FALSE),"") -> 
A43: Sonntag | B43: 2018-02-11 | C43: =IFERROR(VLOOKUP(B43,Fixtermine!$B$1:$E$208,3,FALSE),"") -> 
A44: Montag | B44: 2018-02-12 | C44: =IFERROR(VLOOKUP(B44,Fixtermine!$B$1:$E$208,3,FALSE),"") -> Frühjahrsferien
A45: Dienstag | B45: 2018-02-13 | C45: =IFERROR(VLOOKUP(B45,Fixtermine!$B$1:$E$208,3,FALSE),"") -> Frühjahrsferien
A46: Mittwoch | B46: 2018-02-14 | C46: =IFERROR(VLOOKUP(B46,Fixtermine!$B$1:$E$208,3,FALSE),"") -> Aschermittw. / Ferien
A47: Donnerstag | B47: 2018-02-15 | C47: =IFERROR(VLOOKUP(B47,Fixtermine!$B$1:$E$208,3,FALSE),"") -> Frühjahrsferien
A48: Freitag | B48: 2018-02-16 | C48: =IFERROR(VLOOKUP(B48,Fixtermine!$B$1:$E$208,3,FALSE),"") -> Frühjahrsferien
A49: Samstag | B49: 2018-02-17 | C49: =IFERROR(VLOOKUP(B49,Fixtermine!$B$1:$E$208,3,FALSE),"") -> 
A50: Sonntag | B50: 2018-02-18 | C50: =IFERROR(VLOOKUP(B50,Fixtermine!$B$1:$E$208,3,FALSE),"") -> 
A51: Montag | B51: 2018-02-19 | C51: =IFERROR(VLOOKUP(B51,Fixtermine!$B$1:$E$208,3,FALSE),"") -> 
A52: Dienstag | B52: 2018-02-20 | C52: =IFERROR(VLOOKUP(B52,Fixtermine!$B$1:$E$208,3,FALSE),"") -> 
A53: Mittwoch | B53: 2018-02-21 | C53: =IFERROR(VLOOKUP(B53,Fixtermine!$B$1:$E$208,3,FALSE),"") -> 
A54: Donnerstag | B54: 2018-02-22 | C54: =IFERROR(VLOOKUP(B54,Fixtermine!$B$1:$E$208,3,FALSE),"") -> 
A55: Freitag | B55: 2018-02-23 | C55: =IFERROR(VLOOKUP(B55,Fixtermine!$B$1:$E$208,3,FALSE),"") -> 
A56: Samstag | B56: 2018-02-24 | C56: =IFERROR(VLOOKUP(B56,Fixtermine!$B$1:$E$208,3,FALSE),"") -> 
A57: Sonntag | B57: 2018-02-25 | C57: =IFERROR(VLOOKUP(B57,Fixtermine!$B$1:$E$208,3,FALSE),"") -> 
A58: Montag | B58: 2018-02-26 | C58: =IFERROR(VLOOKUP(B58,Fixtermine!$B$1:$E$208,3,FALSE),"") -> 
A59: Dienstag | B59: 2018-02-27 | C59: =IFERROR(VLOOKUP(B59,Fixtermine!$B$1:$E$208,3,FALSE),"") -> 
A60: Mittwoch | B60: 2018-02-28 | C60: =IFERROR(VLOOKUP(B60,Fixtermine!$B$1:$E$208,3,FALSE),"") -> 
A61: Donnerstag | B61: 2018-03-01 | C61: =IFERROR(VLOOKUP(B61,Fixtermine!$B$1:$E$208,3,FALSE),"") -> 
A62: Freitag | B62: 2018-03-02 | C62: =IFERROR(VLOOKUP(B62,Fixtermine!$B$1:$E$208,3,FALSE),"") -> 
A63: Samstag | B63: 2018-03-03 | C63: =IFERROR(VLOOKUP(B63,Fixtermine!$B$1:$E$208,3,FALSE),"") -> 
A64: Sonntag | B64: 2018-03-04 | C64: =IFERROR(VLOOKUP(B64,Fixtermine!$B$1:$E$208,3,FALSE),"") -> 
A65: Montag | B65: 2018-03-05 | C65: =IFERROR(VLOOKUP(B65,Fixtermine!$B$1:$E$208,3,FALSE),"") -> 
A66: Dienstag | B66: 2018-03-06 | C66: =IFERROR(VLOOKUP(B66,Fixtermine!$B$1:$E$208,3,FALSE),"") -> 
A67: =CHOOSE(WEEKDAY(B67),"Sonntag","Montag","Dienstag","Mittwoch","Donnerstag","Freitag","Samstag") -> Mittwoch | B67: 2018-03-07 | C67: =IFERROR(VLOOKUP(B67,Fixtermine!$B$1:$E$208,3,FALSE),"") -> 
A68: Donnerstag | B68: 2018-03-08 | C68: =IFERROR(VLOOKUP(B68,Fixtermine!$B$1:$E$208,3,FALSE),"") -> 
A69: Freitag | B69: =B68+1 -> 2018-03-09 | C69: =IFERROR(VLOOKUP(B69,Fixtermine!$B$1:$E$208,3,FALSE),"") -> 
A70: Samstag | B70: 2018-03-10 | C70: =IFERROR(VLOOKUP(B70,Fixtermine!$B$1:$E$208,3,FALSE),"") -> 
A71: Sonntag | B71: 2018-03-11 | C71: =IFERROR(VLOOKUP(B71,Fixtermine!$B$1:$E$208,3,FALSE),"") -> 
A72: Montag | B72: 2018-03-12 | C72: =IFERROR(VLOOKUP(B72,Fixtermine!$B$1:$E$208,3,FALSE),"") -> 
A73: Dienstag | B73: 2018-03-13 | C73: =IFERROR(VLOOKUP(B73,Fixtermine!$B$1:$E$208,3,FALSE),"") -> 
A74: Mittwoch | B74: 2018-03-14 | C74: =IFERROR(VLOOKUP(B74,Fixtermine!$B$1:$E$208,3,FALSE),"") -> 
A75: Donnerstag | B75: 2018-03-15 | C75: =IFERROR(VLOOKUP(B75,Fixtermine!$B$1:$E$208,3,FALSE),"") -> 
A76: Freitag | B76: 2018-03-16 | C76: =IFERROR(VLOOKUP(B76,Fixtermine!$B$1:$E$208,3,FALSE),"") -> 
A77: Samstag | B77: 2018-03-17 | C77: =IFERROR(VLOOKUP(B77,Fixtermine!$B$1:$E$208,3,FALSE),"") -> 
A78: Sonntag | B78: 2018-03-18 | C78: =IFERROR(VLOOKUP(B78,Fixtermine!$B$1:$E$208,3,FALSE),"") -> 
A79: Montag | B79: 2018-03-19 | C79: =IFERROR(VLOOKUP(B79,Fixtermine!$B$1:$E$208,3,FALSE),"") -> 
A80: Dienstag | B80: 2018-03-20 | C80: =IFERROR(VLOOKUP(B80,Fixtermine!$B$1:$E$208,3,FALSE),"") -> 
A81: Mittwoch | B81: 2018-03-21 | C81: =IFERROR(VLOOKUP(B81,Fixtermine!$B$1:$E$208,3,FALSE),"") -> 
A82: Donnerstag | B82: 2018-03-22 | C82: =IFERROR(VLOOKUP(B82,Fixtermine!$B$1:$E$208,3,FALSE),"") -> 
A83: Freitag | B83: 2018-03-23 | C83: =IFERROR(VLOOKUP(B83,Fixtermine!$B$1:$E$208,3,FALSE),"") -> 
A84: Samstag | B84: 2018-03-24 | C84: =IFERROR(VLOOKUP(B84,Fixtermine!$B$1:$E$208,3,FALSE),"") -> 
A85: Sonntag | B85: 2018-03-25 | C85: =IFERROR(VLOOKUP(B85,Fixtermine!$B$1:$E$208,3,FALSE),"") -> 
A86: Montag | B86: 2018-03-26 | C86: =IFERROR(VLOOKUP(B86,Fixtermine!$B$1:$E$208,3,FALSE),"") -> Osterferien
A87: Dienstag | B87: 2018-03-27 | C87: =IFERROR(VLOOKUP(B87,Fixtermine!$B$1:$E$208,3,FALSE),"") -> Osterferien
A88: Mittwoch | B88: 2018-03-28 | C88: =IFERROR(VLOOKUP(B88,Fixtermine!$B$1:$E$208,3,FALSE),"") -> Osterferien
A89: Donnerstag | B89: 2018-03-29 | C89: =IFERROR(VLOOKUP(B89,Fixtermine!$B$1:$E$208,3,FALSE),"") -> Osterferien
A90: Freitag | B90: 2018-03-30 | C90: =IFERROR(VLOOKUP(B90,Fixtermine!$B$1:$E$208,3,FALSE),"") -> FT-Karfreitag
A91: Samstag | B91: 2018-03-31 | C91: =IFERROR(VLOOKUP(B91,Fixtermine!$B$1:$E$208,3,FALSE),"") -> Osterferien
A92: Sonntag | B92: 2018-04-01 | C92: =IFERROR(VLOOKUP(B92,Fixtermine!$B$1:$E$208,3,FALSE),"") -> FT-Ostersonntag
A93: Montag | B93: 2018-04-02 | C93: =IFERROR(VLOOKUP(B93,Fixtermine!$B$1:$E$208,3,FALSE),"") -> FT-Ostermontag
A94: Dienstag | B94: 2018-04-03 | C94: =IFERROR(VLOOKUP(B94,Fixtermine!$B$1:$E$208,3,FALSE),"") -> Osterferien
A95: Mittwoch | B95: 2018-04-04 | C95: =IFERROR(VLOOKUP(B95,Fixtermine!$B$1:$E$208,3,FALSE),"") -> Osterferien
A96: Donnerstag | B96: 2018-04-05 | C96: =IFERROR(VLOOKUP(B96,Fixtermine!$B$1:$E$208,3,FALSE),"") -> Osterferien
A97: Freitag | B97: 2018-04-06 | C97: =IFERROR(VLOOKUP(B97,Fixtermine!$B$1:$E$208,3,FALSE),"") -> Osterferien
A98: Samstag | B98: 2018-04-07 | C98: =IFERROR(VLOOKUP(B98,Fixtermine!$B$1:$E$208,3,FALSE),"") -> 
A99: Sonntag | B99: 2018-04-08 | C99: =IFERROR(VLOOKUP(B99,Fixtermine!$B$1:$E$208,3,FALSE),"") -> 
A100: Montag | B100: 2018-04-09 | C100: =IFERROR(VLOOKUP(B100,Fixtermine!$B$1:$E$208,3,FALSE),"") -> 
A101: Dienstag | B101: 2018-04-10 | C101: =IFERROR(VLOOKUP(B101,Fixtermine!$B$1:$E$208,3,FALSE),"") -> 
A102: Mittwoch | B102: 2018-04-11 | C102: =IFERROR(VLOOKUP(B102,Fixtermine!$B$1:$E$208,3,FALSE),"") -> 
A103: Donnerstag | B103: 2018-04-12 | C103: =IFERROR(VLOOKUP(B103,Fixtermine!$B$1:$E$208,3,FALSE),"") -> 
A104: Freitag | B104: 2018-04-13 | C104: =IFERROR(VLOOKUP(B104,Fixtermine!$B$1:$E$208,3,FALSE),"") -> 
A105: Samstag | B105: 2018-04-14 | C105: =IFERROR(VLOOKUP(B105,Fixtermine!$B$1:$E$208,3,FALSE),"") -> 
A106: Sonntag | B106: 2018-04-15 | C106: =IFERROR(VLOOKUP(B106,Fixtermine!$B$1:$E$208,3,FALSE),"") -> 
A107: Montag | B107: 2018-04-16 | C107: =IFERROR(VLOOKUP(B107,Fixtermine!$B$1:$E$208,3,FALSE),"") -> 
A108: Dienstag | B108: 2018-04-17 | C108: =IFERROR(VLOOKUP(B108,Fixtermine!$B$1:$E$208,3,FALSE),"") -> 
A109: Mittwoch | B109: 2018-04-18 | C109: =IFERROR(VLOOKUP(B109,Fixtermine!$B$1:$E$208,3,FALSE),"") -> 
A110: Donnerstag | B110: 2018-04-19 | C110: =IFERROR(VLOOKUP(B110,Fixtermine!$B$1:$E$208,3,FALSE),"") -> 
A111: Freitag | B111: 2018-04-20 | C111: =IFERROR(VLOOKUP(B111,Fixtermine!$B$1:$E$208,3,FALSE),"") -> 
A112: Samstag | B112: 2018-04-21 | C112: =IFERROR(VLOOKUP(B112,Fixtermine!$B$1:$E$208,3,FALSE),"") -> 
A113: Sonntag | B113: 2018-04-22 | C113: =IFERROR(VLOOKUP(B113,Fixtermine!$B$1:$E$208,3,FALSE),"") -> 
A114: Montag | B114: 2018-04-23 | C114: =IFERROR(VLOOKUP(B114,Fixtermine!$B$1:$E$208,3,FALSE),"") -> 
A115: Dienstag | B115: 2018-04-24 | C115: =IFERROR(VLOOKUP(B115,Fixtermine!$B$1:$E$208,3,FALSE),"") -> 
A116: Mittwoch | B116: 2018-04-25 | C116: =IFERROR(VLOOKUP(B116,Fixtermine!$B$1:$E$208,3,FALSE),"") -> 
A117: Donnerstag | B117: 2018-04-26 | C117: =IFERROR(VLOOKUP(B117,Fixtermine!$B$1:$E$208,3,FALSE),"") -> 
A118: Freitag | B118: 2018-04-27 | C118: =IFERROR(VLOOKUP(B118,Fixtermine!$B$1:$E$208,3,FALSE),"") -> 
A119: Samstag | B119: 2018-04-28 | C119: =IFERROR(VLOOKUP(B119,Fixtermine!$B$1:$E$208,3,FALSE),"") -> 
A120: Sonntag | B120: 2018-04-29 | C120: =IFERROR(VLOOKUP(B120,Fixtermine!$B$1:$E$208,3,FALSE),"") -> 
A121: Montag | B121: 2018-04-30 | C121: =IFERROR(VLOOKUP(B121,Fixtermine!$B$1:$E$208,3,FALSE),"") -> 
A122: Dienstag | B122: 2018-05-01 | C122: =IFERROR(VLOOKUP(B122,Fixtermine!$B$1:$E$208,3,FALSE),"") -> FT-Tag der Arbeit
A123: Mittwoch | B123: 2018-05-02 | C123: =IFERROR(VLOOKUP(B123,Fixtermine!$B$1:$E$208,3,FALSE),"") -> 
A124: Donnerstag | B124: 2018-05-03 | C124: =IFERROR(VLOOKUP(B124,Fixtermine!$B$1:$E$208,3,FALSE),"") -> 
A125: Freitag | B125: 2018-05-04 | C125: =IFERROR(VLOOKUP(B125,Fixtermine!$B$1:$E$208,3,FALSE),"") -> 
A126: Samstag | B126: 2018-05-05 | C126: =IFERROR(VLOOKUP(B126,Fixtermine!$B$1:$E$208,3,FALSE),"") -> 
A127: Sonntag | B127: 2018-05-06 | C127: =IFERROR(VLOOKUP(B127,Fixtermine!$B$1:$E$208,3,FALSE),"") -> 
A128: Montag | B128: 2018-05-07 | C128: =IFERROR(VLOOKUP(B128,Fixtermine!$B$1:$E$208,3,FALSE),"") -> 
A129: Dienstag | B129: 2018-05-08 | C129: =IFERROR(VLOOKUP(B129,Fixtermine!$B$1:$E$208,3,FALSE),"") -> 
A130: Mittwoch | B130: 2018-05-09 | C130: =IFERROR(VLOOKUP(B130,Fixtermine!$B$1:$E$208,3,FALSE),"") -> 
A131: =CHOOSE(WEEKDAY(B131),"Sonntag","Montag","Dienstag","Mittwoch","Donnerstag","Freitag","Samstag") -> Donnerstag | B131: 2018-05-10 | C131: =IFERROR(VLOOKUP(B131,Fixtermine!$B$1:$E$208,3,FALSE),"") -> FT-Ch. Himmelfahrt
A132: Freitag | B132: 2018-05-11 | C132: =IFERROR(VLOOKUP(B132,Fixtermine!$B$1:$E$208,3,FALSE),"") -> 
A133: Samstag | B133: =B132+1 -> 2018-05-12 | C133: =IFERROR(VLOOKUP(B133,Fixtermine!$B$1:$E$208,3,FALSE),"") -> 
A134: Sonntag | B134: 2018-05-13 | C134: =IFERROR(VLOOKUP(B134,Fixtermine!$B$1:$E$208,3,FALSE),"") -> 
A135: Montag | B135: 2018-05-14 | C135: =IFERROR(VLOOKUP(B135,Fixtermine!$B$1:$E$208,3,FALSE),"") -> 
A136: Dienstag | B136: 2018-05-15 | C136: =IFERROR(VLOOKUP(B136,Fixtermine!$B$1:$E$208,3,FALSE),"") -> 
A137: Mittwoch | B137: 2018-05-16 | C137: =IFERROR(VLOOKUP(B137,Fixtermine!$B$1:$E$208,3,FALSE),"") -> 
A138: Donnerstag | B138: 2018-05-17 | C138: =IFERROR(VLOOKUP(B138,Fixtermine!$B$1:$E$208,3,FALSE),"") -> 
A139: Freitag | B139: 2018-05-18 | C139: =IFERROR(VLOOKUP(B139,Fixtermine!$B$1:$E$208,3,FALSE),"") -> 
A140: Samstag | B140: 2018-05-19 | C140: =IFERROR(VLOOKUP(B140,Fixtermine!$B$1:$E$208,3,FALSE),"") -> 
A141: Sonntag | B141: 2018-05-20 | C141: =IFERROR(VLOOKUP(B141,Fixtermine!$B$1:$E$208,3,FALSE),"") -> FT-Pfingstsonntag
A142: Montag | B142: 2018-05-21 | C142: =IFERROR(VLOOKUP(B142,Fixtermine!$B$1:$E$208,3,FALSE),"") -> FT-Pfingstmontag
A143: Dienstag | B143: 2018-05-22 | C143: =IFERROR(VLOOKUP(B143,Fixtermine!$B$1:$E$208,3,FALSE),"") -> Pfingstferien
A144: Mittwoch | B144: 2018-05-23 | C144: =IFERROR(VLOOKUP(B144,Fixtermine!$B$1:$E$208,3,FALSE),"") -> Pfingstferien
A145: Donnerstag | B145: 2018-05-24 | C145: =IFERROR(VLOOKUP(B145,Fixtermine!$B$1:$E$208,3,FALSE),"") -> Pfingstferien
A146: Freitag | B146: 2018-05-25 | C146: =IFERROR(VLOOKUP(B146,Fixtermine!$B$1:$E$208,3,FALSE),"") -> Pfingstferien
A147: Samstag | B147: 2018-05-26 | C147: =IFERROR(VLOOKUP(B147,Fixtermine!$B$1:$E$208,3,FALSE),"") -> Pfingstferien
A148: Sonntag | B148: 2018-05-27 | C148: =IFERROR(VLOOKUP(B148,Fixtermine!$B$1:$E$208,3,FALSE),"") -> Pfingstferien
A149: Montag | B149: 2018-05-28 | C149: =IFERROR(VLOOKUP(B149,Fixtermine!$B$1:$E$208,3,FALSE),"") -> Pfingstferien
A150: Dienstag | B150: 2018-05-29 | C150: =IFERROR(VLOOKUP(B150,Fixtermine!$B$1:$E$208,3,FALSE),"") -> Pfingstferien
A151: Mittwoch | B151: 2018-05-30 | C151: =IFERROR(VLOOKUP(B151,Fixtermine!$B$1:$E$208,3,FALSE),"") -> Pfingstferien
A152: Donnerstag | B152: 2018-05-31 | C152: =IFERROR(VLOOKUP(B152,Fixtermine!$B$1:$E$208,3,FALSE),"") -> FT-Fronleichnam
A153: Freitag | B153: 2018-06-01 | C153: =IFERROR(VLOOKUP(B153,Fixtermine!$B$1:$E$208,3,FALSE),"") -> Pfingstferien
A154: Samstag | B154: 2018-06-02 | C154: =IFERROR(VLOOKUP(B154,Fixtermine!$B$1:$E$208,3,FALSE),"") -> 
A155: Sonntag | B155: 2018-06-03 | C155: =IFERROR(VLOOKUP(B155,Fixtermine!$B$1:$E$208,3,FALSE),"") -> 
A156: Montag | B156: 2018-06-04 | C156: =IFERROR(VLOOKUP(B156,Fixtermine!$B$1:$E$208,3,FALSE),"") -> 
A157: Dienstag | B157: 2018-06-05 | C157: =IFERROR(VLOOKUP(B157,Fixtermine!$B$1:$E$208,3,FALSE),"") -> 
A158: Mittwoch | B158: 2018-06-06 | C158: =IFERROR(VLOOKUP(B158,Fixtermine!$B$1:$E$208,3,FALSE),"") -> 
A159: Donnerstag | B159: 2018-06-07 | C159: =IFERROR(VLOOKUP(B159,Fixtermine!$B$1:$E$208,3,FALSE),"") -> 
A160: Freitag | B160: 2018-06-08 | C160: =IFERROR(VLOOKUP(B160,Fixtermine!$B$1:$E$208,3,FALSE),"") -> 
A161: Samstag | B161: 2018-06-09 | C161: =IFERROR(VLOOKUP(B161,Fixtermine!$B$1:$E$208,3,FALSE),"") -> 
A162: Sonntag | B162: 2018-06-10 | C162: =IFERROR(VLOOKUP(B162,Fixtermine!$B$1:$E$208,3,FALSE),"") -> 
A163: Montag | B163: 2018-06-11 | C163: =IFERROR(VLOOKUP(B163,Fixtermine!$B$1:$E$208,3,FALSE),"") -> 
A164: Dienstag | B164: 2018-06-12 | C164: =IFERROR(VLOOKUP(B164,Fixtermine!$B$1:$E$208,3,FALSE),"") -> 
A165: Mittwoch | B165: 2018-06-13 | C165: =IFERROR(VLOOKUP(B165,Fixtermine!$B$1:$E$208,3,FALSE),"") -> 
A166: Donnerstag | B166: 2018-06-14 | C166: =IFERROR(VLOOKUP(B166,Fixtermine!$B$1:$E$208,3,FALSE),"") -> 
A167: Freitag | B167: 2018-06-15 | C167: =IFERROR(VLOOKUP(B167,Fixtermine!$B$1:$E$208,3,FALSE),"") -> 
A168: Samstag | B168: 2018-06-16 | C168: =IFERROR(VLOOKUP(B168,Fixtermine!$B$1:$E$208,3,FALSE),"") -> 
A169: Sonntag | B169: 2018-06-17 | C169: =IFERROR(VLOOKUP(B169,Fixtermine!$B$1:$E$208,3,FALSE),"") -> 
A170: Montag | B170: 2018-06-18 | C170: =IFERROR(VLOOKUP(B170,Fixtermine!$B$1:$E$208,3,FALSE),"") -> 
A171: Dienstag | B171: 2018-06-19 | C171: =IFERROR(VLOOKUP(B171,Fixtermine!$B$1:$E$208,3,FALSE),"") -> 
A172: Mittwoch | B172: 2018-06-20 | C172: =IFERROR(VLOOKUP(B172,Fixtermine!$B$1:$E$208,3,FALSE),"") -> 
A173: Donnerstag | B173: 2018-06-21 | C173: =IFERROR(VLOOKUP(B173,Fixtermine!$B$1:$E$208,3,FALSE),"") -> 
A174: Freitag | B174: 2018-06-22 | C174: =IFERROR(VLOOKUP(B174,Fixtermine!$B$1:$E$208,3,FALSE),"") -> 
A175: Samstag | B175: 2018-06-23 | C175: =IFERROR(VLOOKUP(B175,Fixtermine!$B$1:$E$208,3,FALSE),"") -> 
A176: Sonntag | B176: 2018-06-24 | C176: =IFERROR(VLOOKUP(B176,Fixtermine!$B$1:$E$208,3,FALSE),"") -> 
A177: Montag | B177: 2018-06-25 | C177: =IFERROR(VLOOKUP(B177,Fixtermine!$B$1:$E$208,3,FALSE),"") -> 
A178: Dienstag | B178: 2018-06-26 | C178: =IFERROR(VLOOKUP(B178,Fixtermine!$B$1:$E$208,3,FALSE),"") -> 
A179: Mittwoch | B179: 2018-06-27 | C179: =IFERROR(VLOOKUP(B179,Fixtermine!$B$1:$E$208,3,FALSE),"") -> 
A180: Donnerstag | B180: 2018-06-28 | C180: =IFERROR(VLOOKUP(B180,Fixtermine!$B$1:$E$208,3,FALSE),"") -> 
A181: Freitag | B181: 2018-06-29 | C181: =IFERROR(VLOOKUP(B181,Fixtermine!$B$1:$E$208,3,FALSE),"") -> 
A182: Samstag | B182: 2018-06-30 | C182: =IFERROR(VLOOKUP(B182,Fixtermine!$B$1:$E$208,3,FALSE),"") -> 
A183: Sonntag | B183: 2018-07-01 | C183: =IFERROR(VLOOKUP(B183,Fixtermine!$B$1:$E$208,3,FALSE),"") -> 
A184: Montag | B184: 2018-07-02 | C184: =IFERROR(VLOOKUP(B184,Fixtermine!$B$1:$E$208,3,FALSE),"") -> 
A185: Dienstag | B185: 2018-07-03 | C185: =IFERROR(VLOOKUP(B185,Fixtermine!$B$1:$E$208,3,FALSE),"") -> 
A186: Mittwoch | B186: 2018-07-04 | C186: =IFERROR(VLOOKUP(B186,Fixtermine!$B$1:$E$208,3,FALSE),"") -> 
A187: Donnerstag | B187: 2018-07-05 | C187: =IFERROR(VLOOKUP(B187,Fixtermine!$B$1:$E$208,3,FALSE),"") -> 
A188: Freitag | B188: 2018-07-06 | C188: =IFERROR(VLOOKUP(B188,Fixtermine!$B$1:$E$208,3,FALSE),"") -> 
A189: Samstag | B189: 2018-07-07 | C189: =IFERROR(VLOOKUP(B189,Fixtermine!$B$1:$E$208,3,FALSE),"") -> 
A190: Sonntag | B190: 2018-07-08 | C190: =IFERROR(VLOOKUP(B190,Fixtermine!$B$1:$E$208,3,FALSE),"") -> 
A191: Montag | B191: 2018-07-09 | C191: =IFERROR(VLOOKUP(B191,Fixtermine!$B$1:$E$208,3,FALSE),"") -> 
A192: Dienstag | B192: 2018-07-10 | C192: =IFERROR(VLOOKUP(B192,Fixtermine!$B$1:$E$208,3,FALSE),"") -> 
A193: Mittwoch | B193: 2018-07-11 | C193: =IFERROR(VLOOKUP(B193,Fixtermine!$B$1:$E$208,3,FALSE),"") -> 
A194: Donnerstag | B194: 2018-07-12 | C194: =IFERROR(VLOOKUP(B194,Fixtermine!$B$1:$E$208,3,FALSE),"") -> 
A195: =CHOOSE(WEEKDAY(B195),"Sonntag","Montag","Dienstag","Mittwoch","Donnerstag","Freitag","Samstag") -> Freitag | B195: 2018-07-13 | C195: =IFERROR(VLOOKUP(B195,Fixtermine!$B$1:$E$208,3,FALSE),"") -> 
A196: Samstag | B196: 2018-07-14 | C196: =IFERROR(VLOOKUP(B196,Fixtermine!$B$1:$E$208,3,FALSE),"") -> 
A197: Sonntag | B197: =B196+1 -> 2018-07-15 | C197: =IFERROR(VLOOKUP(B197,Fixtermine!$B$1:$E$208,3,FALSE),"") -> 
A198: Montag | B198: 2018-07-16 | C198: =IFERROR(VLOOKUP(B198,Fixtermine!$B$1:$E$208,3,FALSE),"") -> 
A199: Dienstag | B199: 2018-07-17 | C199: =IFERROR(VLOOKUP(B199,Fixtermine!$B$1:$E$208,3,FALSE),"") -> 
A200: Mittwoch | B200: 2018-07-18 | C200: =IFERROR(VLOOKUP(B200,Fixtermine!$B$1:$E$208,3,FALSE),"") -> 
... 168 more rows

Sheet Fixtermine (hidden)
A1: =CHOOSE(WEEKDAY(E1),"Sonntag","Montag","Dienstag","Mittwoch","Donnerstag","Freitag","Samstag") -> Sonntag | B1: =B2-7 -> 43436 | D1: 1. Advent | E1: =B1 -> 2018-12-02 | G1: Jahr | H1: =YEAR(Kalender!B2) -> 2018
A2: Sonntag | B2: =B3-7 -> 43443 | D2: 2. Advent | E2: 2018-12-09 | G2: Gausssche Osterformel | H2: =MOD(H1,19) -> 4
A3: Sonntag | B3: =B4-7 -> 43450 | D3: 3. Advent | E3: 2018-12-16 | H3: =MOD(H1,4) -> 2
A4: Sonntag | B4: =B7-WEEKDAY(B7)+1 -> 43457 | D4: =IF(WEEKDAY(B7)=1,D7,"4. Apfent") -> 4. Apfent | E4: =B4 -> 2018-12-23 | H4: =MOD(H1,7) -> 2
A5: =CHOOSE(WEEKDAY(E5),"Sonntag","Montag","Dienstag","Mittwoch","Donnerstag","Freitag","Samstag") -> Mittwoch | B5: =DATEVALUE(E5) -> 43376 | C5: 03.10. | D5: FT-Tag d. Deut. Einheit | E5: =CONCATENATE(C5,$H$1) -> 03.10.2018 | H5: =TRUNC((8*(TRUNC(H1/100))+13)/25)-2 -> 4
A6: Donnerstag | B6: 43405 | C6: 01.11. | D6: FT-Allerheiligen | E6: 01.11.2018 | H6: =TRUNC(H1/100)-TRUNC(H1/400)-2 -> 13
A7: Montag | B7: 43458 | C7: 24.12. | D7: Hl. Abend / Ferien | E7: 24.12.2018 | H7: =MOD(15+H6-H5,30) -> 24
A8: Dienstag | B8: 43459 | C8: 25.12. | D8: FT-1. Weihnachtsfeiertag | E8: 25.12.2018 | H8: =MOD(6+H6,7) -> 5
A9: Mittwoch | B9: 43460 | C9: 26.12. | D9: FT-2. Weihnachtsfeiertag | E9: 26.12.2018 | H9: =MOD(H7+19*H2,30) -> 10
A10: Montag | B10: 43101 | C10: 01.01. | D10: FT-Neujahr | E10: 01.01.2018 | H10: =IF(H9=29,28,IF(AND(H9=28,H2>=11),27,IF(AND(H9<28,H9>29),,H9))) -> 10
A11: Samstag | B11: 43106 | C11: 06.01. | D11: FT-Hl. 3 Könige | E11: 06.01.2018 | H11: =MOD(2*H3+4*H4+6*H10+H8,7) -> 0
A12: Dienstag | B12: 43221 | C12: 01.05. | D12: FT-Tag der Arbeit | E12: 01.05.2018 | H12: =H10+H11+1 -> 11
A13: Mittwoch | B13: 43327 | C13: 15.08. | D13: FT-Maria Himmeklfahrt | E13: 15.08.2018 | H13: =DATEVALUE(CONCATENATE("21.märz",H1)) -> 43180
A14: Montag | B14: =$B$6+2-$I$31 -> 43402 | D14: Herbstferien | E14: =B14 -> 2018-10-29 | G14: Ostersonntag | H14: =H12+H13 -> 2018-04-01
A15: Dienstag | B15: =$B$6+3-$I$31 -> 43403 | D15: Herbstferien | E15: 2018-10-30 | G15: Tag | H15: =DAY(H14) -> 1
A16: Mittwoch | B16: =$B$6+4-$I$31 -> 43404 | D16: Herbstferien | E16: =B16 -> 2018-10-31 | G16: Monat | H16: =MONTH(H14) -> 4
A17: Donnerstag | B17: =$B$6+5-$I$31 -> 43405 | D17: Herbstferien | E17: =B17 -> 2018-11-01 | G17: Jahr | H17: =YEAR(H14) -> 2018
A18: Freitag | B18: =$B$6+6-$I$31 -> 43406 | D18: Herbstferien | E18: =B18 -> 2018-11-02 | G18: Zusammengebastelt | H18: =CONCATENATE(H15,".",H16,".",H17) -> 1.4.2018
A19: Mittwoch | B19: =DATEVALUE(E19) -> 43425 | C19: =VLOOKUP(4,$G$23:$J$29,3,TRUE) -> 21.11. | D19: Buß- u. Bettag | E19: =CONCATENATE(C19,$H$1) -> 21.11.2018
A20: Donnerstag | B20: 43461 | C20: 27.12. | D20: Weihnachtsferien | E20: 27.12.2018 | G20: akt. Dat.(Heute) | H20: =TODAY() -> 43235
A21: Freitag | B21: 43462 | C21: 28.12. | D21: Weihnachtsferien | E21: 28.12.2018
A22: Samstag | B22: 43463 | C22: 29.12. | D22: Weihnachtsferien | E22: 29.12.2018 | G22: Buß- u. Bettag zw. 16.11. und 22.11.
A23: Sonntag | B23: 43464 | C23: 30.12. | D23: Weihnachtsferien | E23: 30.12.2018 | G23: =WEEKDAY(J23) -> 6 | H23: =CHOOSE(WEEKDAY(J23),"Sonntag","Montag","Dienstag","Mittwoch","Donnerstag","Freitag","Samstag") -> Freitag | I23: 16.11. | J23: =CONCATENATE(I23,$H$1) -> 16.11.2018
A24: Montag | B24: 43465 | C24: 31.12. | D24: Weihnachtsferien | E24: 31.12.2018 | G24: 7 | H24: Samstag | I24: 17.11. | J24: 17.11.2018
A25: Dienstag | B25: 43102 | C25: 02.01. | D25: Weihnachtsferien | E25: 02.01.2018 | G25: 1 | H25: Sonntag | I25: 18.11. | J25: 18.11.2018
A26: Mittwoch | B26: 43103 | C26: 03.01. | D26: Weihnachtsferien | E26: 03.01.2018 | G26: 2 | H26: Montag | I26: 19.11. | J26: 19.11.2018
A27: Donnerstag | B27: 43104 | C27: 04.01. | D27: Weihnachtsferien | E27: 04.01.2018 | G27: 3 | H27: Dienstag | I27: 20.11. | J27: 20.11.2018
A28: Freitag | B28: 43105 | C28: 05.01. | D28: Weihnachtsferien | E28: 05.01.2018 | G28: 4 | H28: Mittwoch | I28: 21.11. | J28: 21.11.2018
A29: Montag | B29: =DATEVALUE(H$18)-48 -> 43143 | D29: Frühjahrsferien | E29: =B29 -> 2018-02-12 | G29: 5 | H29: Donnerstag | I29: 22.11. | J29: 22.11.2018
A30: Dienstag | B30: =DATEVALUE(H$18)-47 -> 43144 | D30: Frühjahrsferien | E30: 2018-02-13
A31: Mittwoch | B31: =DATEVALUE(H$18)-46 -> 43145 | D31: Aschermittw. / Ferien | E31: 2018-02-14 | G31: Herbstferienberechn. | H31: Wochentagserm. | I31: =VLOOKUP(C6,G32:J42,2,TRUE) -> 5 | J31: =CHOOSE(WEEKDAY(I31),"Sonntag","Montag","Dienstag","Mittwoch","Donnerstag","Freitag","Samstag") -> Donnerstag
A32: Donnerstag | B32: =DATEVALUE(H$18)-45 -> 43146 | D32: Frühjahrsferien | E32: 2018-02-15 | G32: 27.10. | H32: =WEEKDAY(J32) -> 7 | I32: =CHOOSE(WEEKDAY(J32),"Sonntag","Montag","Dienstag","Mittwoch","Donnerstag","Freitag","Samstag") -> Samstag | J32: =CONCATENATE(G32,$H$1) -> 27.10.2018
A33: Freitag | B33: =DATEVALUE(H$18)-44 -> 43147 | D33: Frühjahrsferien | E33: 2018-02-16 | G33: 28.10. | H33: 1 | I33: Sonntag | J33: 28.10.2018
A34: Montag | B34: =DATEVALUE(H$18)-6 -> 43185 | D34: Osterferien | E34: 2018-03-26 | G34: 29.10. | H34: 2 | I34: Montag | J34: 29.10.2018
A35: Dienstag | B35: =DATEVALUE(H$18)-5 -> 43186 | D35: Osterferien | E35: 2018-03-27 | G35: 30.10. | H35: 3 | I35: Dienstag | J35: 30.10.2018
A36: Mittwoch | B36: =DATEVALUE(H$18)-4 -> 43187 | D36: Osterferien | E36: 2018-03-28 | G36: 31.10. | H36: 4 | I36: Mittwoch | J36: 31.10.2018
A37: Donnerstag | B37: =DATEVALUE(H$18)-3 -> 43188 | D37: Osterferien | E37: 2018-03-29 | G37: 01.11. | H37: 5 | I37: Donnerstag | J37: 01.11.2018
A38: Freitag | B38: =DATEVALUE(H$18)-2 -> 43189 | D38: FT-Karfreitag | E38: 2018-03-30 | G38: 02.11. | H38: 6 | I38: Freitag | J38: 02.11.2018
A39: Samstag | B39: =DATEVALUE(H$18)-1 -> 43190 | D39: Osterferien | E39: 2018-03-31 | G39: 03.11. | H39: 7 | I39: Samstag | J39: 03.11.2018
A40: =CHOOSE(WEEKDAY(E47),"Sonntag","Montag","Dienstag","Mittwoch","Donnerstag","Freitag","Samstag") -> Sonntag | B40: =DATEVALUE(H$18) -> 43191 | D40: FT-Ostersonntag | E40: 2018-04-01 | G40: 04.11. | H40: 1 | I40: Sonntag | J40: 04.11.2018
A41: =CHOOSE(WEEKDAY(E41),"Sonntag","Montag","Dienstag","Mittwoch","Donnerstag","Freitag","Samstag") -> Montag | B41: =DATEVALUE(H$18)+1 -> 43192 | D41: FT-Ostermontag | E41: 2018-04-02 | G41: 05.11. | H41: 2 | I41: Montag | J41: 05.11.2018
A42: Dienstag | B42: =DATEVALUE(H$18)+2 -> 43193 | D42: Osterferien | E42: 2018-04-03 | G42: 06.11. | H42: 3 | I42: Dienstag | J42: 06.11.2018
A43: Mittwoch | B43: =DATEVALUE(H$18)+3 -> 43194 | D43: Osterferien | E43: 2018-04-04
A44: Donnerstag | B44: =DATEVALUE(H$18)+4 -> 43195 | D44: Osterferien | E44: 2018-04-05 | G44: Sommerferientabelle | J44: Beginn | K44: Ende (einschließlich)
A45: Freitag | B45: =DATEVALUE(H$18)+5 -> 43196 | D45: Osterferien | E45: 2018-04-06 | G45: =IF(J45=0,"",YEAR(J45)) -> 2016 | H45: =IF(J45=0,"",CONCATENATE(IF(DAY(J45)<10,CONCATENATE("0",DAY(J45)),DAY(J45)),".",IF(MONTH(J45)<10,CONCATENATE("0",MONTH(J45)),MONTH(J45)),".")) -> 30.07. | I45: =IF(K45=0,"",CONCATENATE(IF(DAY(K45)<10,CONCATENATE("0",DAY(K45)),DAY(K45)),".",IF(MONTH(K45)<10,CONCATENATE("0",MONTH(K45)),MONTH(K45)),".")) -> 12.09. | J45: 2016-07-30 | K45: 2016-09-12
A46: Donnerstag | B46: =DATEVALUE(H$18)+39 -> 43230 | D46: FT-Ch. Himmelfahrt | E46: 2018-05-10 | G46: =IF(J46=0,"",YEAR(J46)) -> 2017 | H46: =IF(J46=0,"",CONCATENATE(IF(DAY(J46)<10,CONCATENATE("0",DAY(J46)),DAY(J46)),".",IF(MONTH(J46)<10,CONCATENATE("0",MONTH(J46)),MONTH(J46)),".")) -> 29.07. | I46: =IF(K46=0,"",CONCATENATE(IF(DAY(K46)<10,CONCATENATE("0",DAY(K46)),DAY(K46)),".",IF(MONTH(K46)<10,CONCATENATE("0",MONTH(K46)),MONTH(K46)),".")) -> 11.09. | J46: 2017-07-29 | K46: 2017-09-11
A47: Sonntag | B47: =DATEVALUE(H$18)+49 -> 43240 | D47: FT-Pfingstsonntag | E47: 2018-05-20 | G47: 2018 | H47: 30.07. | I47: 10.09. | J47: 2018-07-30 | K47: 2018-09-10
A48: Montag | B48: =DATEVALUE(H$18)+50 -> 43241 | D48: FT-Pfingstmontag | E48: 2018-05-21 | G48: 2019 | H48: 29.07. | I48: 09.09. | J48: 2019-07-29 | K48: 2019-09-09
A49: Dienstag | B49: =DATEVALUE(H$18)+51 -> 43242 | D49: Pfingstferien | E49: 2018-05-22 | G49: 2020 | H49: 27.07. | I49: 07.09. | J49: 2020-07-27 | K49: 2020-09-07
A50: Mittwoch | B50: =DATEVALUE(H$18)+52 -> 43243 | D50: Pfingstferien | E50: 2018-05-23 | G50: 2021 | H50: 30.07. | I50: 13.09. | J50: 2021-07-30 | K50: 2021-09-13
A51: Donnerstag | B51: =DATEVALUE(H$18)+53 -> 43244 | D51: Pfingstferien | E51: 2018-05-24 | G51: 2022 | H51: 01.08. | I51: 12.09. | J51: 2022-08-01 | K51: 2022-09-12
A52: Freitag | B52: =DATEVALUE(H$18)+54 -> 43245 | D52: Pfingstferien | E52: 2018-05-25 | G52: 2023 | H52: 31.07. | I52: 11.09. | J52: 2023-07-31 | K52: 2023-09-11
A53: Samstag | B53: =DATEVALUE(H$18)+55 -> 43246 | D53: Pfingstferien | E53: 2018-05-26 | G53: 2024 | H53: 29.07. | I53: 09.09. | J53: 2024-07-29 | K53: 2024-09-09
A54: Sonntag | B54: =DATEVALUE(H$18)+56 -> 43247 | D54: Pfingstferien | E54: 2018-05-27
A55: Montag | B55: =DATEVALUE(H$18)+57 -> 43248 | D55: Pfingstferien | E55: 2018-05-28
A56: Dienstag | B56: =DATEVALUE(H$18)+58 -> 43249 | D56: Pfingstferien | E56: 2018-05-29
A57: Mittwoch | B57: =DATEVALUE(H$18)+59 -> 43250 | D57: Pfingstferien | E57: 2018-05-30
A58: Donnerstag | B58: =DATEVALUE(H$18)+60 -> 43251 | D58: FT-Fronleichnam | E58: 2018-05-31
A59: Freitag | B59: =DATEVALUE(H$18)+61 -> 43252 | D59: Pfingstferien | E59: 2018-06-01
A60: Montag | B60: =DATEVALUE(E60) -> 43311 | C60: =$H$103 -> 30.07. | D60: Sommerferien | E60: =CONCATENATE(C60,$H$1) -> 30.07.2018
A61: Dienstag | B61: =IF((B60+1)<$B$104,B60+1,$B$104) -> 43312 | D61: Sommerferien | E61: =B61 -> 2018-07-31
A62: Mittwoch | B62: 43313 | D62: Sommerferien | E62: 2018-08-01
A63: Donnerstag | B63: 43314 | D63: Sommerferien | E63: 2018-08-02
A64: Freitag | B64: 43315 | D64: Sommerferien | E64: 2018-08-03
A65: Samstag | B65: 43316 | D65: Sommerferien | E65: 2018-08-04
A66: Sonntag | B66: 43317 | D66: Sommerferien | E66: 2018-08-05
A67: Montag | B67: 43318 | D67: Sommerferien | E67: 2018-08-06
A68: Dienstag | B68: 43319 | D68: Sommerferien | E68: 2018-08-07
A69: Mittwoch | B69: 43320 | D69: Sommerferien | E69: =B69 -> 2018-08-08
A70: Donnerstag | B70: 43321 | D70: Sommerferien | E70: 2018-08-09
A71: Freitag | B71: 43322 | D71: Sommerferien | E71: 2018-08-10
A72: Samstag | B72: 43323 | D72: Sommerferien | E72: 2018-08-11
A73: =CHOOSE(WEEKDAY(E73),"Sonntag","Montag","Dienstag","Mittwoch","Donnerstag","Freitag","Samstag") -> Sonntag | B73: 43324 | D73: Sommerferien | E73: 2018-08-12
A74: Montag | B74: 43325 | D74: Sommerferien | E74: 2018-08-13
A75: Dienstag | B75: 43326 | D75: Sommerferien | E75: 2018-08-14
A76: Mittwoch | B76: 43327 | D76: Sommerferien | E76: 2018-08-15
A77: Donnerstag | B77: 43328 | D77: Sommerferien | E77: 2018-08-16
A78: Freitag | B78: 43329 | D78: Sommerferien | E78: 2018-08-17 | I78: =IF(K78=0,"",CONCATENATE(IF(DAY(K78)<10,CONCATENATE("0",DAY(K78)),DAY(K78)),".",IF(MONTH(K78)<10,CONCATENATE("0",MONTH(K78)),MONTH(K78)),".")) -> 
A79: Samstag | B79: 43330 | D79: Sommerferien | E79: 2018-08-18
A80: Sonntag | B80: 43331 | D80: Sommerferien | E80: 2018-08-19
A81: Montag | B81: 43332 | D81: Sommerferien | E81: 2018-08-20
A82: Dienstag | B82: 43333 | D82: Sommerferien | E82: 2018-08-21
A83: Mittwoch | B83: 43334 | D83: Sommerferien | E83: 2018-08-22
A84: Donnerstag | B84: 43335 | D84: Sommerferien | E84: =B84 -> 2018-08-23
A85: Freitag | B85: 43336 | D85: Sommerferien | E85: 2018-08-24
A86: Samstag | B86: 43337 | D86: Sommerferien | E86: 2018-08-25
A87: Sonntag | B87: 43338 | D87: Sommerferien | E87: 2018-08-26
A88: Montag | B88: 43339 | D88: Sommerferien | E88: 2018-08-27
A89: Dienstag | B89: 43340 | D89: Sommerferien | E89: 2018-08-28
A90: Mittwoch | B90: 43341 | D90: Sommerferien | E90: 2018-08-29
A91: Donnerstag | B91: 43342 | D91: Sommerferien | E91: 2018-08-30
A92: Freitag | B92: 43343 | D92: Sommerferien | E92: 2018-08-31
A93: Samstag | B93: 43344 | D93: Sommerferien | E93: 2018-09-01
A94: Sonntag | B94: 43345 | D94: Sommerferien | E94: 2018-09-02
A95: Montag | B95: 43346 | D95: Sommerferien | E95: 2018-09-03
A96: Dienstag | B96: 43347 | D96: Sommerferien | E96: 2018-09-04
A97: Mittwoch | B97: 43348 | D97: Sommerferien | E97: 2018-09-05
A98: Donnerstag | B98: 43349 | D98: Sommerferien | E98: 2018-09-06
A99: Freitag | B99: 43350 | D99: Sommerferien | E99: 2018-09-07
A100: Samstag | B100: 43351 | D100: Sommerferien | E100: 2018-09-08
A101: Sonntag | B101: 43352 | D101: Sommerferien | E101: 2018-09-09 | G101: =IF(J101=0,"",YEAR(J101)) ->  | H101: =IF(J80=0,"",CONCATENATE(IF(DAY(J101)<10,CONCATENATE("0",DAY(J101)),DAY(J101)),".",IF(MONTH(J101)<10,CONCATENATE("0",MONTH(J101)),MONTH(J101)),".")) -> 
A102: Montag | B102: 43353 | D102: Sommerferien | E102: 2018-09-10
A103: Montag | B103: =IF((B102+1)<$B$104,B102+1,$B$104) -> 43353 | D103: Sommerferien | E103: 2018-09-10 | G103: =$H$1 -> 2018 | H103: =VLOOKUP($H$1,$G$45:$J$101,2) -> 30.07. | I103: =VLOOKUP($H$1,$G$45:$J$101,3) -> 10.09.
A104: Montag | B104: =DATEVALUE(E104) -> 43353 | C104: =$I$103 -> 10.09. | D104: Sommerferien | E104: =CONCATENATE(C104,$H$1) -> 10.09.2018 | G104: =$H105 -> 2019 | H104: =VLOOKUP($H$105,$G$45:$J$101,2) -> 29.07. | I104: =VLOOKUP($H$105,$G$45:$J$101,3) -> 09.09.
A105: =CHOOSE(WEEKDAY(E105),"Sonntag","Montag","Dienstag","Mittwoch","Donnerstag","Freitag","Samstag") -> Sonntag | B105: =B106-7 -> 43800 | D105: 1. Advent | E105: =B105 -> 2019-12-01 | G105: Jahr | H105: =H1+1 -> 2019
A106: Sonntag | B106: =B107-7 -> 43807 | D106: 2. Advent | E106: 2019-12-08 | G106: Gausssche Osterformel | H106: =MOD(H105,19) -> 5
A107: Sonntag | B107: =B108-7 -> 43814 | D107: 3. Advent | E107: 2019-12-15 | H107: =MOD(H105,4) -> 3
A108: Sonntag | B108: =B111-WEEKDAY(B111)+1 -> 43821 | D108: =IF(WEEKDAY(B111)=1,D111,"4. Apfent") -> 4. Apfent | E108: =B108 -> 2019-12-22 | H108: =MOD(H105,7) -> 3
A109: Donnerstag | B109: =DATEVALUE(E109) -> 43741 | C109: 03.10. | D109: FT-Tag d. Deut. Einheit | E109: =CONCATENATE(C109,$H$105) -> 03.10.2019 | H109: =TRUNC((8*(TRUNC(H105/100))+13)/25)-2 -> 4
A110: Freitag | B110: 43770 | C110: 01.11. | D110: FT-Allerheiligen | E110: =CONCATENATE(C110,$H$105) -> 01.11.2019 | H110: =TRUNC(H105/100)-TRUNC(H105/400)-2 -> 13
A111: Dienstag | B111: 43823 | C111: 24.12. | D111: Hl. Abend / Ferien | E111: =CONCATENATE(C111,$H$105) -> 24.12.2019 | H111: =MOD(15+H110-H109,30) -> 24
A112: Mittwoch | B112: 43824 | C112: 25.12. | D112: FT-1. Weihnachtsfeiertag | E112: =CONCATENATE(C112,$H105) -> 25.12.2019 | H112: =MOD(6+H110,7) -> 5
A113: Donnerstag | B113: 43825 | C113: 26.12. | D113: FT-2. Weihnachtsfeiertag | E113: =CONCATENATE(C113,$H$105) -> 26.12.2019 | H113: =MOD(H111+19*H106,30) -> 29
A114: Dienstag | B114: 43466 | C114: 01.01. | D114: FT-Neujahr | E114: =CONCATENATE(C114,$H$105) -> 01.01.2019 | H114: =IF(H113=29,28,IF(AND(H113=28,H106>=11),27,IF(AND(H113<28,H113>29),,H113))) -> 28
A115: Sonntag | B115: 43471 | C115: 06.01. | D115: FT-Hl. 3 Könige | E115: =CONCATENATE(C115,$H$105) -> 06.01.2019 | H115: =MOD(2*H107+4*H108+6*H114+H112,7) -> 2
A116: Mittwoch | B116: 43586 | C116: 01.05. | D116: FT-Tag der Arbeit | E116: =CONCATENATE(C116,$H$105) -> 01.05.2019 | H116: =H114+H115+1 -> 31
A117: Donnerstag | B117: 43692 | C117: 15.08. | D117: FT-Maria Himmeklfahrt | E117: =CONCATENATE(C117,$H$105) -> 15.08.2019 | H117: =DATEVALUE(CONCATENATE("21.märz",H105)) -> 43545
A118: Dienstag | B118: =$B$110+2-$I135 -> 43767 | D118: Herbstferien | E118: =B118 -> 2019-10-29 | G118: Ostersonntag | H118: =H116+H117 -> 2019-04-21
A119: Mittwoch | B119: =$B$110+3-$I$135 -> 43768 | D119: Herbstferien | E119: 2019-10-30 | G119: Tag | H119: =DAY(H118) -> 21
A120: Donnerstag | B120: =$B$110+4-$I$135 -> 43769 | D120: Herbstferien | E120: =B120 -> 2019-10-31 | G120: Monat | H120: =MONTH(H118) -> 4
A121: Freitag | B121: =$B$110+5-$I$135 -> 43770 | D121: Herbstferien | E121: =B121 -> 2019-11-01 | G121: Jahr | H121: =YEAR(H118) -> 2019
A122: Samstag | B122: =$B$110+6-$I$135 -> 43771 | D122: Herbstferien | E122: =B122 -> 2019-11-02 | G122: Zusammengebastelt | H122: =CONCATENATE(H119,".",H120,".",H121) -> 21.4.2019
A123: Donnerstag | B123: =DATEVALUE(E123) -> 43790 | C123: =VLOOKUP(4,$G$23:$J$29,3,TRUE) -> 21.11. | D123: Buß- u. Bettag | E123: =CONCATENATE(C123,$H$105) -> 21.11.2019
A124: Freitag | B124: 43826 | C124: 27.12. | D124: Weihnachtsferien | E124: 27.12.2019 | G124: akt. Dat.(Heute) | H124: =TODAY() -> 43235
A125: Samstag | B125: 43827 | C125: 28.12. | D125: Weihnachtsferien | E125: 28.12.2019
A126: Sonntag | B126: 43828 | C126: 29.12. | D126: Weihnachtsferien | E126: 29.12.2019 | G126: Buß- u. Bettag zw. 16.11. und 22.11.
A127: Montag | B127: 43829 | C127: 30.12. | D127: Weihnachtsferien | E127: 30.12.2019 | G127: =WEEKDAY(J127) -> 6 | H127: =CHOOSE(WEEKDAY(J127),"Sonntag","Montag","Dienstag","Mittwoch","Donnerstag","Freitag","Samstag") -> Freitag | I127: 16.11. | J127: =CONCATENATE(I127,$H$1) -> 16.11.2018
A128: Dienstag | B128: 43830 | C128: 31.12. | D128: Weihnachtsferien | E128: 31.12.2019 | G128: 7 | H128: Samstag | I128: 17.11. | J128: 17.11.2018
A129: Mittwoch | B129: 43467 | C129: 02.01. | D129: Weihnachtsferien | E129: 02.01.2019 | G129: 1 | H129: Sonntag | I129: 18.11. | J129: 18.11.2018
A130: Donnerstag | B130: 43468 | C130: 03.01. | D130: Weihnachtsferien | E130: 03.01.2019 | G130: 2 | H130: Montag | I130: 19.11. | J130: 19.11.2018
A131: Freitag | B131: 43469 | C131: 04.01. | D131: Weihnachtsferien | E131: 04.01.2019 | G131: 3 | H131: Dienstag | I131: 20.11. | J131: 20.11.2018
A132: Samstag | B132: 43470 | C132: 05.01. | D132: Weihnachtsferien | E132: 05.01.2019 | G132: 4 | H132: Mittwoch | I132: 21.11. | J132: 21.11.2018
A133: Montag | B133: =DATEVALUE(H$122)-48 -> 43528 | D133: Frühjahrsferien | E133: =B133 -> 2019-03-04 | G133: 5 | H133: Donnerstag | I133: 22.11. | J133: 22.11.2018
A134: Dienstag | B134: =DATEVALUE(H$122)-47 -> 43529 | D134: Frühjahrsferien | E134: 2019-03-05
A135: Mittwoch | B135: =DATEVALUE(H$122)-46 -> 43530 | D135: Aschermittw. / Ferien | E135: 2019-03-06 | G135: Herbstferienberechn. | H135: Wochentagserm. | I135: =VLOOKUP(C110,G136:J146,2,TRUE) -> 5 | J135: =CHOOSE(WEEKDAY(I135),"Sonntag","Montag","Dienstag","Mittwoch","Donnerstag","Freitag","Samstag") -> Donnerstag
A136: Donnerstag | B136: =DATEVALUE(H$122)-45 -> 43531 | D136: Frühjahrsferien | E136: 2019-03-07 | G136: 27.10. | H136: =WEEKDAY(J136) -> 7 | I136: =CHOOSE(WEEKDAY(J136),"Sonntag","Montag","Dienstag","Mittwoch","Donnerstag","Freitag","Samstag") -> Samstag | J136: =CONCATENATE(G136,$H$1) -> 27.10.2018
A137: Freitag | B137: =DATEVALUE(H$122)-44 -> 43532 | D137: Frühjahrsferien | E137: 2019-03-08 | G137: 28.10. | H137: 1 | I137: Sonntag | J137: 28.10.2018
A138: Montag | B138: =DATEVALUE(H$122)-6 -> 43570 | D138: Osterferien | E138: 2019-04-15 | G138: 29.10. | H138: 2 | I138: Montag | J138: 29.10.2018
A139: Dienstag | B139: =DATEVALUE(H$122)-5 -> 43571 | D139: Osterferien | E139: 2019-04-16 | G139: 30.10. | H139: 3 | I139: Dienstag | J139: 30.10.2018
A140: Mittwoch | B140: =DATEVALUE(H$122)-4 -> 43572 | D140: Osterferien | E140: 2019-04-17 | G140: 31.10. | H140: 4 | I140: Mittwoch | J140: 31.10.2018
A141: Donnerstag | B141: =DATEVALUE(H$122)-3 -> 43573 | D141: Osterferien | E141: 2019-04-18 | G141: 01.11. | H141: 5 | I141: Donnerstag | J141: 01.11.2018
A142: Freitag | B142: =DATEVALUE(H$122)-2 -> 43574 | D142: FT-Karfreitag | E142: 2019-04-19 | G142: 02.11. | H142: 6 | I142: Freitag | J142: 02.11.2018
A143: Samstag | B143: =DATEVALUE(H$122)-1 -> 43575 | D143: Osterferien | E143: 2019-04-20 | G143: 03.11. | H143: 7 | I143: Samstag | J143: 03.11.2018
A144: =CHOOSE(WEEKDAY(E151),"Sonntag","Montag","Dienstag","Mittwoch","Donnerstag","Freitag","Samstag") -> Sonntag | B144: =DATEVALUE(H$122) -> 43576 | D144: FT-Ostersonntag | E144: 2019-04-21 | G144: 04.11. | H144: 1 | I144: Sonntag | J144: 04.11.2018
A145: =CHOOSE(WEEKDAY(E145),"Sonntag","Montag","Dienstag","Mittwoch","Donnerstag","Freitag","Samstag") -> Montag | B145: =DATEVALUE(H$122)+1 -> 43577 | D145: FT-Ostermontag | E145: 2019-04-22 | G145: 05.11. | H145: 2 | I145: Montag | J145: 05.11.2018
A146: Dienstag | B146: =DATEVALUE(H$122)+2 -> 43578 | D146: Osterferien | E146: 2019-04-23 | G146: 06.11. | H146: 3 | I146: Dienstag | J146: 06.11.2018
A147: Mittwoch | B147: =DATEVALUE(H$122)+3 -> 43579 | D147: Osterferien | E147: 2019-04-24
A148: Donnerstag | B148: =DATEVALUE(H$122)+4 -> 43580 | D148: Osterferien | E148: 2019-04-25
A149: Freitag | B149: =DATEVALUE(H$122)+5 -> 43581 | D149: Osterferien | E149: 2019-04-26
A150: Donnerstag | B150: =DATEVALUE(H$122)+39 -> 43615 | D150: FT-Ch. Himmelfahrt | E150: 2019-05-30
A151: Sonntag | B151: =DATEVALUE(H$122)+49 -> 43625 | D151: FT-Pfingstsonntag | E151: 2019-06-09
A152: Montag | B152: =DATEVALUE(H$122)+50 -> 43626 | D152: FT-Pfingstmontag | E152: 2019-06-10
A153: Dienstag | B153: =DATEVALUE(H$122)+51 -> 43627 | D153: Pfingstferien | E153: 2019-06-11
A154: Mittwoch | B154: =DATEVALUE(H$122)+52 -> 43628 | D154: Pfingstferien | E154: 2019-06-12
A155: Donnerstag | B155: =DATEVALUE(H$122)+53 -> 43629 | D155: Pfingstferien | E155: 2019-06-13
A156: Freitag | B156: =DATEVALUE(H$122)+54 -> 43630 | D156: Pfingstferien | E156: 2019-06-14
A157: Samstag | B157: =DATEVALUE(H$122)+55 -> 43631 | D157: Pfingstferien | E157: 2019-06-15
A158: Sonntag | B158: =DATEVALUE(H$122)+56 -> 43632 | D158: Pfingstferien | E158: 2019-06-16
A159: Montag | B159: =DATEVALUE(H$122)+57 -> 43633 | D159: Pfingstferien | E159: 2019-06-17
A160: Dienstag | B160: =DATEVALUE(H$122)+58 -> 43634 | D160: Pfingstferien | E160: 2019-06-18
A161: Mittwoch | B161: =DATEVALUE(H$122)+59 -> 43635 | D161: Pfingstferien | E161: 2019-06-19
A162: Donnerstag | B162: =DATEVALUE(H$122)+60 -> 43636 | D162: FT-Fronleichnam | E162: 2019-06-20
A163: Freitag | B163: =DATEVALUE(H$122)+61 -> 43637 | D163: Pfingstferien | E163: 2019-06-21
A164: Montag | B164: =DATEVALUE(E164) -> 43675 | C164: =$H$104 -> 29.07. | D164: Sommerferien | E164: =CONCATENATE(C164,$H$105) -> 29.07.2019
A165: Dienstag | B165: =IF((B164+1)<$B$208,B164+1,$B$208) -> 43676 | D165: Sommerferien | E165: =B165 -> 2019-07-30
A166: Mittwoch | B166: 43677 | D166: Sommerferien | E166: 2019-07-31
A167: Donnerstag | B167: 43678 | D167: Sommerferien | E167: 2019-08-01
A168: Freitag | B168: 43679 | D168: Sommerferien | E168: 2019-08-02
A169: Samstag | B169: 43680 | D169: Sommerferien | E169: 2019-08-03
A170: Sonntag | B170: 43681 | D170: Sommerferien | E170: 2019-08-04
A171: Montag | B171: 43682 | D171: Sommerferien | E171: 2019-08-05
A172: Dienstag | B172: 43683 | D172: Sommerferien | E172: 2019-08-06
A173: Mittwoch | B173: 43684 | D173: Sommerferien | E173: 2019-08-07
A174: Donnerstag | B174: 43685 | D174: Sommerferien | E174: 2019-08-08
A175: Freitag | B175: 43686 | D175: Sommerferien | E175: 2019-08-09
A176: Samstag | B176: 43687 | D176: Sommerferien | E176: 2019-08-10
A177: Sonntag | B177: 43688 | D177: Sommerferien | E177: 2019-08-11
A178: Montag | B178: 43689 | D178: Sommerferien | E178: 2019-08-12
A179: Dienstag | B179: 43690 | D179: Sommerferien | E179: 2019-08-13
A180: Mittwoch | B180: 43691 | D180: Sommerferien | E180: 2019-08-14
A181: Donnerstag | B181: 43692 | D181: Sommerferien | E181: 2019-08-15
A182: Freitag | B182: 43693 | D182: Sommerferien | E182: 2019-08-16
A183: Samstag | B183: 43694 | D183: Sommerferien | E183: 2019-08-17
A184: Sonntag | B184: 43695 | D184: Sommerferien | E184: 2019-08-18
A185: Montag | B185: 43696 | D185: Sommerferien | E185: 2019-08-19
A186: Dienstag | B186: 43697 | D186: Sommerferien | E186: 2019-08-20
A187: Mittwoch | B187: 43698 | D187: Sommerferien | E187: 2019-08-21
A188: Donnerstag | B188: 43699 | D188: Sommerferien | E188: 2019-08-22
A189: Freitag | B189: 43700 | D189: Sommerferien | E189: 2019-08-23
A190: Samstag | B190: 43701 | D190: Sommerferien | E190: 2019-08-24
A191: Sonntag | B191: 43702 | D191: Sommerferien | E191: 2019-08-25
A192: Montag | B192: 43703 | D192: Sommerferien | E192: 2019-08-26
A193: Dienstag | B193: 43704 | D193: Sommerferien | E193: 2019-08-27
A194: Mittwoch | B194: 43705 | D194: Sommerferien | E194: 2019-08-28
A195: Donnerstag | B195: 43706 | D195: Sommerferien | E195: 2019-08-29
A196: Freitag | B196: 43707 | D196: Sommerferien | E196: 2019-08-30
A197: Samstag | B197: 43708 | D197: Sommerferien | E197: 2019-08-31
A198: Sonntag | B198: 43709 | D198: Sommerferien | E198: 2019-09-01
A199: Montag | B199: 43710 | D199: Sommerferien | E199: 2019-09-02
A200: Dienstag | B200: 43711 | D200: Sommerferien | E200: 2019-09-03
... 8 more rows
